bitfinex-derivatives/quotes_ETHF0:USTF0_20250103
["timestamp","ask_amount","ask_price","bid_price","bid_amount"]
[1735918815827,0.28163,3553.4,3553.3,3.2078]
[1735918816524,0.28166,3553.0,3552.9,3.2078]
[1735918822732,0.28166,3553.0,3552.9,3.48947]
[1735918822935,0.28166,3553.0,3552.9,3.2078]
[1735918824538,0.28166,3553.0,3551.8,5.15795494]
[1735918824539,0.28168,3552.7,3552.5,3.2078]
[1735918824732,0.28169,3552.6,3552.5,3.2078]
[1735918825134,41.08169,3552.6,3552.5,3.2078]
[1735918826134,0.28172,3552.2,3552.1,3.2078]
[1735918826342,2.23210617,3552.2,3552.1,4.30827823]
[1735918828034,0.28176,3551.7,3551.6,3.2078]
[1735918828229,0.28179,3551.3,3551.2,3.2078]
[1735918828939,1.95038617,3551.3,3550.8,6.46667721]
[1735918829130,2.23220617,3550.9,3550.8,6.46667721]
[1735918829333,0.28185,3550.6,3550.5,9.67447721]
[1735918829538,40.8,3550.8,3550.5,9.67447721]
[1735918829739,41.08183,3550.8,3550.6,0.28184]
[1735918829939,40.8,3550.8,3550.5,9.67447721]
[1735918830336,0.7104,3551.8,3550.5,9.67447721]
[1735918830536,0.28176,3551.7,3551.6,3.2078]
[1735918830735,2.75220473,3551.7,3551.6,3.2078]
[1735918830936,0.2818,3551.2,3551.1,3.2078]
[1735918831437,41.0818,3551.2,3551.1,3.2078]
[1735918831945,0.2818,3551.2,3551.1,3.2078]
[1735918833543,0.28185,3550.6,3550.5,4.0871]
[1735918834231,0.28185,3550.6,3550.5,3.2078]
[1735918837340,2.47044473,3551.3,3550.5,3.2078]
[1735918837544,0.28178,3551.5,3551.2,3.2078]
[1735918837740,4.42570806,3551.6,3551.2,3.2078]
[1735918837741,0.28179,3551.3,3551.2,3.2078]
[1735918838045,0.28179,3551.4,3551.2,3.2078]
[1735918838233,4.42570806,3551.6,3551.2,3.9345]
[1735918838435,0.28179,3551.3,3551.2,3.2078]
[1735918838836,0.28182,3550.9,3550.8,3.2078]
[1735918839738,0.70447,3551.5,3550.8,3.2078]
[1735918839739,0.28181,3551.1,3551.0,0.28181]
[1735918840038,1.365,3551.2,3550.6,4.0317]
[1735918840239,1.365,3551.2,3551.0,3.2078]
[1735918840435,0.28177,3551.6,3551.2,0.2818]
[1735918840639,0.28178,3551.5,3551.4,3.2078]
[1735918843538,0.28181,3551.1,3551.0,3.2078]
[1735918844547,0.28184,3550.7,3550.6,3.2078]
[1735918844736,1.59484,3550.7,3550.6,3.2078]
[1735918845140,0.28184,3550.7,3550.6,3.2078]
[1735918845446,1.59484,3550.7,3550.6,3.2078]
[1735918846950,0.70451,3551.2,3550.6,3.2078]
[1735918847145,0.2818,3551.2,3551.1,3.2078]
[1735918849146,0.28183,3550.8,3550.7,3.2078]
[1735918849349,0.28183,3550.8,3550.7,3.48964]
[1735918850248,1.313,3551.3,3550.7,3.2078]
[1735918850445,0.28179,3551.3,3551.2,3.4896]
[1735918851246,0.28179,3551.4,3551.3,0.28179]
[1735918851447,1.313,3551.7,3551.2,3.2078]
[1735918851655,1.59476,3551.7,3551.6,3.2078]
[1735918851946,3.54582702,3551.7,3551.6,3.2078]
[1735918852340,0.28176,3551.7,3551.6,3.2078]
[1735918852543,5.49628216,3552.4,3551.6,3.2078]
[1735918852739,5.49628216,3552.4,3552.0,3.48954]
[1735918853143,40.8,3552.1,3552.0,3.48954]
[1735918853546,0.28172,3552.3,3552.2,0.28172]
[1735918853944,40.8,3552.5,3552.0,3.2078]
[1735918854150,0.2817,3552.5,3552.4,3.2078]
[1735918855547,3.26406702,3552.9,3552.4,3.2078]
[1735918855754,1.59467,3552.9,3552.8,3.2078]
[1735918855949,1.95106702,3553.2,3552.8,3.2078]
[1735918856148,0.28167,3552.9,3552.8,3.2078]
[1735918857348,0.2817,3552.5,3552.4,3.2078]
[1735918857849,0.28173,3552.1,3552.0,3.2078]
[1735918861159,40.8,3552.5,3552.0,3.2078]
[1735918861453,41.0817,3552.5,3552.4,3.2078]
[1735918861657,4.42570806,3553.1,3552.4,3.2078]
[1735918861860,7.17481933,3553.1,3553.0,3.2078]
[1735918862052,47.69316933,3553.1,3552.6,3.2078]
[1735918862356,0.28169,3552.7,3552.6,3.2078]
[1735918863162,0.28165,3553.1,3552.8,0.28167]
[1735918863357,0.28165,3553.1,3553.0,3.2078]
[1735918863757,43.54911127,3553.1,3553.0,3.2078]
[1735918865060,44.86111127,3553.1,3553.0,3.2078]
[1735918870071,0.28168,3552.7,3552.6,3.2078]
[1735918870667,0.28168,3552.7,3552.6,3.48949]
[1735918870872,0.28168,3552.7,3552.6,3.2078]
[1735918871073,0.28168,3552.7,3552.6,3.48949]
[1735918871277,0.28166,3553.0,3552.9,0.28167]
[1735918871467,0.28164,3553.2,3553.1,0.28165]
[1735918871775,2.46746127,3553.5,3553.2,0.28164]
[1735918871776,0.28164,3553.3,3553.2,0.28164]
[1735918871967,2.46746127,3553.5,3553.1,3.2078]
[1735918872163,4.42570806,3553.7,3553.1,3.2078]
[1735918872473,4.42570806,3553.7,3553.6,3.48941]
[1735918872865,0.70392,3554.2,3553.7,0.2816]
[1735918873066,0.28156,3554.2,3554.1,3.2078]
[1735918873374,4.42570806,3554.4,3554.1,3.2078]
[1735918873575,0.28156,3554.2,3554.1,3.2078]
[1735918874770,3.73546127,3554.3,3553.6,3.2078]
[1735918874976,0.2816,3553.7,3553.6,3.2078]
[1735918875374,0.70392,3554.2,3553.6,3.2078]
[1735918875567,0.28156,3554.2,3554.1,3.2078]
[1735918876077,41.08156,3554.2,3554.1,3.2078]
[1735918876473,0.2816,3553.7,3553.6,3.2078]
[1735918877072,41.0816,3553.7,3553.6,3.2078]
[1735918878581,0.28165,3553.1,3553.0,3.2078]
[1735918879283,0.28168,3552.7,3552.6,3.2078]
[1735918879876,0.28171,3552.3,3552.2,3.2078]
[1735918880478,1.268,3552.4,3551.5,1.547]
[1735918880479,3.21704493,3552.4,3551.8,3.2078]
[1735918880783,0.28175,3551.9,3551.8,3.2078]
[1735918881776,0.28175,3551.9,3551.0,0.8974]
[1735918881777,0.28179,3551.4,3551.3,3.2078]
[1735918882373,0.28182,3551.0,3550.9,3.2078]
[1735918882577,2.47069971,3551.4,3550.8,3.2078]
[1735918882783,0.28182,3550.9,3550.8,3.2078]
[1735918883380,2.47069971,3551.0,3550.4,3.2078]
[1735918883582,2.75255971,3550.5,3550.4,3.2078]
[1735918884580,0.28186,3550.5,3550.4,3.2078]
[1735918884778,2.75255971,3550.5,3550.4,3.2078]
[1735918885282,3.73969971,3550.9,3550.4,3.2078]
[1735918885476,2.75251971,3550.9,3550.8,3.2078]
[1735918885679,0.28182,3550.9,3550.8,3.2078]
[1735918887079,1.269,3551.2,3550.8,3.2078]
[1735918887080,2.47069971,3551.3,3550.8,3.2078]
[1735918887282,0.2818,3551.3,3551.2,3.2078]
[1735918887881,0.28179,3551.4,3551.2,3.2078]
[1735918888080,1.269,3551.5,3551.2,3.2078]
[1735918888281,0.28179,3551.4,3551.2,3.2078]
[1735918888482,3.73969971,3551.7,3551.2,3.2078]
[1735918888679,0.28179,3551.3,3551.2,3.2078]
[1735918888878,2.75248971,3551.3,3551.2,3.2078]
[1735918890583,3.73969971,3551.7,3551.2,3.2078]
[1735918890783,0.28179,3551.3,3551.2,3.2078]
[1735918891186,2.75248971,3551.3,3551.2,3.2078]
[1735918891685,2.47069971,3551.7,3551.2,3.2078]
[1735918891885,0.28176,3551.7,3551.6,3.2078]
[1735918892793,1.269,3551.9,3551.6,3.2078]
[1735918893090,0.28176,3551.7,3551.6,3.2078]
[1735918893284,0.7733,3552.5,3551.6,3.2078]
[1735918893285,2.47069971,3552.2,3551.6,3.2078]
[1735918893480,2.75241971,3552.2,3552.1,3.2078]
[1735918893993,0.28172,3552.2,3552.1,3.2078]
[1735918894390,0.2817,3552.5,3552.3,0.28171]
[1735918894686,2.47069971,3552.6,3552.1,3.2078]
[1735918894892,2.75238971,3552.6,3552.5,3.2078]
[1735918896291,0.28169,3552.6,3552.5,3.2078]
[1735918896791,0.28169,3552.6,3552.5,4.0605]
[1735918900791,0.28169,3552.6,3552.5,3.2078]
[1735918901295,0.28172,3552.2,3552.1,3.2078]
[1735918901497,2.75241971,3552.2,3552.1,3.2078]
[1735918901699,43.55241971,3552.2,3552.1,3.2078]
[1735918903395,0.28175,3551.8,3551.7,3.2078]
[1735918905598,0.28175,3551.8,3551.7,3.48956]
[1735918906401,0.28175,3551.8,3551.7,3.2078]
[1735918906603,2.23192076,3551.8,3551.7,3.2078]
[1735918907895,0.28175,3551.8,3551.7,3.2078]
[1735918909597,2.23192076,3551.8,3551.7,3.2078]
[1735918909795,3.90034152,3551.8,3551.2,3.2078]
[1735918909999,2.23196076,3551.3,3551.2,3.2078]
[1735918911892,2.23196076,3551.3,3550.4,0.9697]
[1735918911893,0.28183,3550.8,3550.7,3.2078]
[1735918912202,2.23200076,3550.8,3550.7,3.2078]
[1735918913007,0.28183,3550.8,3550.7,3.2078]
[1735918913206,0.28183,3550.8,3550.7,3.48964]
[1735918913896,0.28183,3550.8,3550.7,3.2078]
[1735918914099,2.23200076,3550.8,3550.7,3.2078]
[1735918916696,3.48700076,3550.8,3550.7,3.2078]
[1735918919897,2.23200076,3550.8,3550.7,3.2078]
[1735918920303,2.23200076,3550.8,3550.2,0.28188]
[1735918920304,2.81967076,3550.8,3550.1,3.2078]
[1735918920505,2.23205076,3550.2,3550.1,3.2078]
[1735918921896,2.23205076,3550.2,3550.1,3.48969]
[1735918922101,0.70466,3550.5,3550.1,3.48969]
[1735918922102,0.28186,3550.4,3550.3,0.28187]
[1735918922294,0.8695,3550.8,3550.1,3.2078]
[1735918922295,1.95017076,3550.8,3550.1,3.2078]
[1735918922506,0.28183,3550.9,3550.8,0.28183]
[1735918922802,0.28183,3550.9,3550.8,1.26303]
[1735918923402,0.28182,3551.0,3550.9,0.28182]
[1735918923607,0.28182,3551.0,3550.8,0.9812]
[1735918923608,4.09237076,3551.4,3550.8,0.9812]
[1735918923796,4.09237076,3551.4,3551.2,3.2078]
[1735918923797,0.28179,3551.3,3551.2,3.2078]
[1735918923998,0.28179,3551.3,3551.2,3.4896]
[1735918924199,0.28179,3551.3,3551.2,3.2078]
[1735918924399,0.28179,3551.3,3551.2,3.4896]
[1735918924599,0.28179,3551.3,3551.2,3.2078]
[1735918926905,0.28182,3550.9,3550.8,4.189]
[1735918927103,2.23199076,3550.9,3550.8,3.2078]
[1735918927807,1.95017076,3550.9,3550.3,3.2078]
[1735918928102,2.23203076,3550.4,3550.3,3.2078]
[1735918928309,44.28803076,3550.4,3550.3,3.2078]
[1735918928709,3.20617076,3550.4,3550.3,3.48967]
[1735918928905,3.48803076,3550.4,3550.3,3.2078]
[1735918929103,0.28185,3550.6,3550.4,0.28186]
[1735918929412,0.28185,3550.6,3550.5,0.28186]
[1735918929801,0.28185,3550.6,3550.3,3.2078]
[1735918929802,0.28186,3550.5,3550.4,0.28186]
[1735918930806,0.28186,3550.4,3550.3,3.2078]
[1735918931012,0.28186,3550.4,3550.3,3.48967]
[1735918931209,2.23203076,3550.4,3550.3,3.2078]
[1735918931509,0.7046,3550.8,3550.3,3.2078]
[1735918931814,1.53783,3550.9,3550.8,0.28183]
[1735918932022,0.28183,3550.9,3550.8,0.28183]
[1735918932313,0.28183,3550.8,3550.7,3.48964]
[1735918932618,2.0891,3551.3,3550.7,3.2078]
[1735918932908,2.37089,3551.3,3551.2,3.2078]
[1735918933911,2.0891,3551.3,3550.8,3.2078]
[1735918934207,0.28182,3550.9,3550.8,3.48963]
[1735918934412,0.28182,3551.0,3550.9,0.28182]
[1735918934610,2.0891,3551.3,3550.8,3.2078]
[1735918934912,2.37089,3551.3,3551.2,3.2078]
[1735918935212,4.32106076,3551.3,3551.2,3.2078]
[1735918935611,4.03927076,3551.3,3550.8,3.2078]
[1735918935813,0.28182,3550.9,3550.8,3.2078]
[1735918936408,0.28186,3550.4,3550.3,3.2078]
[1735918936609,41.08186,3550.4,3550.3,3.2078]
[1735918937614,0.28186,3550.4,3550.3,3.2078]
[1735918939310,2.23203076,3550.4,3550.3,3.2078]
[1735918941213,1.95017076,3550.4,3549.9,3.2078]
[1735918941518,2.23207076,3550.0,3549.9,3.2078]
[1735918942116,2.23207076,3550.0,3549.9,3.4897]
[1735918942314,2.23207076,3550.0,3549.9,3.2078]
[1735918944918,0.2819,3550.0,3549.9,3.2078]
[1735918946622,3.48707076,3550.0,3549.9,3.2078]
[1735918947529,0.28194,3549.5,3549.4,3.2078]
[1735918947727,2.23211076,3549.5,3549.4,3.2078]
[1735918947924,0.28194,3549.5,3549.4,3.2078]
[1735918948236,1.255,3550.2,3549.4,3.2078]
[1735918948441,1.95017076,3550.3,3550.1,3.2078]
[1735918948632,0.28188,3550.2,3550.1,3.2078]
[1735918950035,1.95017076,3550.3,3549.6,4.0227]
[1735918950231,1.95017076,3549.9,3549.6,0.8149]
[1735918950437,2.23207076,3549.9,3549.8,3.2078]
[1735918953034,43.03207076,3549.9,3549.8,3.2078]
[1735918953735,2.23207076,3549.9,3549.8,3.2078]
[1735918955746,0.2819,3549.9,3549.8,3.2078]
[1735918956744,0.28194,3549.5,3549.4,3.2078]
[1735918956944,2.23211076,3549.5,3549.4,3.2078]
[1735918958349,0.28194,3549.5,3549.4,3.2078]
[1735918958547,1.256,3549.7,3549.4,3.2078]
[1735918959047,0.28193,3549.6,3549.5,0.28194]
[1735918959440,0.28194,3549.5,3549.4,3.48974]
[1735918960344,0.28194,3549.5,3549.4,3.2078]
[1735918960647,0.28194,3549.5,3549.4,3.48974]
[1735918961043,0.28194,3549.5,3549.4,3.2078]
[1735918961237,0.28194,3549.5,3549.4,3.48974]
[1735918961648,0.28194,3549.5,3549.4,3.2078]
[1735918964947,0.28194,3549.5,3549.4,3.48974]
[1735918966350,4.42570806,3550.2,3549.4,3.2078]
[1735918966546,4.70758806,3550.2,3550.1,3.2078]
[1735918966948,4.42570806,3550.2,3550.1,3.48969]
[1735918967146,0.28188,3550.2,3550.1,3.2078]
[1735918967348,4.42570806,3550.4,3550.1,3.2078]
[1735918967554,0.28188,3550.2,3550.1,3.48968]
[1735918967946,0.28188,3550.2,3550.1,3.2078]
[1735918968148,4.42570806,3550.4,3550.1,3.2078]
[1735918968343,0.28188,3550.3,3550.2,0.28188]
[1735918968552,1.95017076,3550.6,3550.1,3.2078]
[1735918968847,2.23202076,3550.6,3550.5,3.2078]
[1735918970547,0.28185,3550.6,3550.5,3.2078]
[1735918970948,0.70466,3550.5,3550.1,3.2078]
[1735918971146,4.42570806,3550.9,3550.1,3.2078]
[1735918971349,4.42570806,3550.9,3550.8,3.48963]
[1735918971545,4.70752806,3550.9,3550.8,3.2078]
[1735918972248,4.42570806,3550.9,3550.8,3.2078]
[1735918972548,0.94950806,3550.9,3550.8,3.48963]
[1735918972849,4.42267659,3551.4,3551.3,0.28179]
[1735918973047,4.42267659,3551.4,3551.3,3.48959]
[1735918973247,1.32357659,3551.4,3551.3,10.43976076]
[1735918973448,5.49628216,3551.6,3551.5,0.28178]
[1735918974054,4.03078216,3551.6,3551.5,0.28178]
[1735918974353,11.7878916,3552.7,3552.6,0.28169]
[1735918974354,2.91157076,3552.7,3552.6,0.28169]
[1735918974551,0.9614,3552.7,3552.6,3.48949]
[1735918974956,1.24308,3552.7,3552.6,3.48949]
[1735918975155,1.24308,3552.7,3552.6,3.2078]
[1735918975759,3.19325076,3552.7,3552.6,3.2078]
[1735918976049,0.9614,3552.7,3552.6,3.2078]
[1735918976254,0.9614,3552.7,3552.6,3.48949]
[1735918976654,1.255,3553.0,3552.6,3.2078]
[1735918976859,0.28167,3552.8,3552.7,0.28168]
[1735918977158,0.28167,3552.9,3552.7,0.28168]
[1735918977451,0.28168,3552.8,3552.6,3.48949]
[1735918977658,0.28168,3552.7,3552.6,3.48949]
[1735918977850,1.95017076,3553.0,3552.6,3.48949]
[1735918978053,0.28168,3552.8,3552.6,3.48949]
[1735918978250,0.28168,3552.8,3552.6,3.2078]
[1735918978459,1.95017076,3553.0,3552.6,3.2078]
[1735918978759,0.28168,3552.7,3552.6,3.2078]
[1735918978958,1.95017076,3553.0,3552.6,3.2078]
[1735918979260,0.28167,3552.9,3552.7,0.28168]
[1735918979456,0.28168,3552.7,3552.6,3.2078]
[1735918979658,2.23185076,3552.7,3552.6,3.2078]
[1735918980656,2.23185076,3552.7,3552.6,1.6993]
[1735918983060,0.9636,3553.3,3552.6,1.6993]
[1735918983260,1.95017076,3553.1,3552.6,1.6993]
[1735918983461,0.28168,3552.8,3552.6,1.6993]
[1735918984062,0.28168,3552.8,3552.6,1.98099]
[1735918984262,0.28168,3552.7,3552.6,1.6993]
[1735918984861,1.15538,3552.7,3552.6,1.6993]
[1735918985062,2.20938,3552.7,3552.6,1.6993]
[1735918986866,0.28172,3552.2,3552.1,3.2078]
[1735918987161,0.28175,3551.8,3551.7,3.2078]
[1735918987464,1.95017076,3552.2,3552.0,0.28174]
[1735918987660,4.12007076,3552.5,3552.1,3.48953]
[1735918987967,1.9277,3552.7,3552.1,3.48953]
[1735918987968,2.20938,3552.7,3552.1,3.2078]
[1735918988153,1.33569,3552.7,3552.5,0.28169]
[1735918988464,0.28167,3552.8,3552.6,0.28168]
[1735918988656,1.95017076,3552.9,3552.6,3.2078]
[1735918989160,0.9159,3553.0,3552.8,0.28167]
[1735918989767,0.9159,3553.0,3552.6,3.2078]
[1735918990160,0.9159,3553.0,3552.7,0.8553]
[1735918990663,0.28167,3552.8,3552.7,0.8553]
[1735918992764,0.28168,3552.7,3552.6,3.2078]
[1735918993272,0.9159,3553.0,3552.6,3.2078]
[1735918993473,0.28167,3552.9,3552.8,0.28167]
[1735918993771,0.28168,3552.7,3552.6,3.48949]
[1735918993973,0.9159,3553.0,3552.6,3.2078]
[1735918994166,0.28168,3552.8,3552.7,0.28168]
[1735918994568,0.28168,3552.7,3552.6,3.48949]
[1735918995069,0.28168,3552.7,3552.6,3.2078]
[1735918995267,0.28168,3552.7,3552.6,3.48949]
[1735918996370,0.9159,3553.0,3552.6,3.2078]
[1735918996571,0.28168,3552.8,3552.7,0.28168]
[1735918997877,0.28167,3552.9,3552.8,0.28167]
[1735918998174,0.28168,3552.8,3552.7,0.28167]
[1735918998375,0.28167,3552.9,3552.8,0.28167]
[1735918998572,0.9159,3553.0,3552.6,3.2078]
[1735918998872,0.28163,3553.4,3553.3,0.28163]
[1735918999078,0.28164,3553.2,3553.1,3.48945]
[1735918999380,0.28164,3553.3,3553.2,0.28164]
[1735918999770,0.8306,3553.4,3553.1,3.2078]
[1735919000068,2.23181076,3553.2,3553.1,3.2078]
[1735919000269,0.28167,3552.9,3552.8,0.28167]
[1735919000472,0.28165,3553.1,3553.0,0.28166]
[1735919000676,0.28167,3552.9,3552.8,0.28167]
[1735919000870,0.28167,3552.8,3552.7,3.2078]
[1735919001071,0.28167,3552.8,3552.7,3.48948]
[1735919003173,0.8306,3553.4,3552.7,3.48948]
[1735919003174,0.28167,3553.0,3552.9,0.28166]
[1735919003367,0.8306,3553.4,3552.9,0.28166]
[1735919003368,1.11223,3553.4,3553.3,0.28163]
[1735919003567,1.11223,3553.4,3553.3,3.48943]
[1735919004389,0.8306,3553.4,3553.3,3.48943]
[1735919004677,1.11223,3553.4,3553.3,3.48943]
[1735919005275,0.8306,3553.4,3553.3,3.48943]
[1735919005470,1.11223,3553.4,3553.3,3.48943]
[1735919005870,3.06240076,3553.4,3553.3,3.48943]
[1735919006075,0.28165,3553.2,3553.1,0.28165]
[1735919006276,0.28165,3553.2,3553.0,0.8288]
[1735919006277,0.28165,3553.1,3553.0,1.11045]
[1735919007076,0.28165,3553.2,3553.1,0.28164]
[1735919007784,0.28164,3553.3,3553.2,0.28164]
[1735919007986,0.28164,3553.3,3553.0,0.8288]
[1735919007987,1.0064,3553.5,3553.0,1.53294]
[1735919008187,3.21208076,3553.7,3553.4,3.2078]
[1735919008375,2.23175076,3554.0,3553.4,3.2078]
[1735919008580,1.253,3554.1,3553.9,3.2078]
[1735919008777,1.253,3554.1,3554.0,0.28158]
[1735919008983,1.0178,3554.6,3554.5,0.28154]
[1735919009282,1.0178,3554.6,3554.0,0.70396]
[1735919009283,2.23171076,3554.6,3554.3,3.2078]
[1735919009485,2.23171076,3554.6,3554.5,0.28153]
[1735919009988,1.95017076,3554.9,3554.8,0.28152]
[1735919010286,1.95017076,3554.9,3554.4,0.70387]
[1735919010287,1.28059,3555.1,3554.9,0.2815]
[1735919010488,0.9991,3555.1,3554.7,3.2078]
[1735919010684,0.2815,3555.0,3554.7,3.2078]
[1735919010891,0.2815,3555.0,3554.8,0.28152]
[1735919011076,0.9991,3555.1,3554.7,3.2078]
[1735919011277,0.2815,3555.0,3554.9,0.2815]
[1735919011484,1.95017076,3555.0,3554.7,3.2078]
[1735919012092,0.28155,3554.4,3554.3,3.2078]
[1735919012293,2.23172076,3554.4,3554.3,3.2078]
[1735919012599,1.95674,3555.1,3554.3,3.2078]
[1735919012791,2.23172076,3554.4,3554.3,3.2078]
[1735919014394,1.95017076,3554.7,3554.3,3.2078]
[1735919014886,2.23170076,3554.7,3554.5,0.28153]
[1735919015087,1.253,3554.8,3554.7,0.28152]
[1735919015287,1.253,3554.8,3554.7,3.48932]
[1735919015492,0.28151,3554.9,3554.7,3.48932]
[1735919015693,0.28152,3554.8,3554.7,3.2078]
[1735919015897,3.2078,3555.3,3554.7,3.2078]
[1735919016102,1.95017076,3555.6,3555.2,3.2078]
[1735919016395,3.2078,3556.2,3555.2,3.2078]
[1735919016592,1.95017076,3556.1,3555.3,1.7167]
[1735919016794,3.2078,3557.0,3555.7,3.2078]
[1735919016992,1.95017076,3556.8,3556.1,3.2078]
[1735919017200,3.2078,3557.0,3556.5,3.48918]
[1735919017201,0.28134,3557.0,3556.5,3.48918]
[1735919017495,43.5471,3557.3,3556.5,3.48918]
[1735919017496,1.95017076,3557.2,3556.5,3.48918]
[1735919017998,6.5951656,3558.2,3556.5,10.15797076]
[1735919018200,3.8080656,3558.2,3558.1,0.28125]
[1735919018404,0.7094756,3558.2,3558.1,2.23142076]
[1735919018700,6.56177161,3558.4,3558.3,0.28124]
[1735919018896,6.56177161,3558.4,3558.3,3.2078]
[1735919019091,0.28125,3558.2,3558.0,3.2078]
[1735919019291,0.2069474,3560.1,3558.1,1.95017076]
[1735919019496,0.2069474,3560.1,3557.8,4.3551677]
[1735919019497,1.95017076,3558.9,3558.5,3.2078]
[1735919019899,2.23139076,3558.6,3558.5,3.2078]
[1735919020093,1.95017076,3558.6,3558.5,3.2078]
[1735919020300,3.71271512,3558.6,3557.9,3.2078]
[1735919020496,2.74197512,3558.0,3557.9,3.2078]
[1735919020701,0.28127,3557.9,3557.5,3.2078]
[1735919020892,0.28129,3557.6,3557.5,3.2078]
[1735919021096,2.46071512,3557.6,3557.5,3.2078]
[1735919021295,2.74200512,3557.6,3557.5,3.2078]
[1735919021495,2.46071512,3557.6,3557.3,4.3551677]
[1735919021701,0.28131,3557.4,3557.3,4.3551677]
[1735919022097,0.28133,3557.2,3557.1,3.2078]
[1735919022898,2.1814,3557.4,3556.4,3.2078]
[1735919023098,0.28137,3556.6,3556.4,3.2078]
[1735919023298,3.71271512,3557.2,3556.4,3.2078]
[1735919023495,3.71271512,3557.2,3556.8,3.2078]
[1735919023801,0.28135,3557.0,3556.8,3.2078]
[1735919024005,0.28135,3556.9,3556.8,3.2078]
[1735919024306,3.71271512,3557.2,3556.8,3.2078]
[1735919024605,0.28135,3556.9,3556.8,3.2078]
[1735919025200,1.251,3557.1,3556.8,3.2078]
[1735919025500,0.28135,3556.9,3556.8,3.2078]
[1735919025904,1.251,3557.1,3556.8,3.2078]
[1735919026293,1.251,3557.1,3556.3,3.2078]
[1735919026499,2.46071512,3557.2,3556.7,3.2078]
[1735919026704,0.28134,3557.0,3556.9,3.2078]
[1735919028010,2.46071512,3558.0,3556.9,3.2078]
[1735919028299,2.46071512,3557.6,3557.4,3.2078]
[1735919028501,0.2813,3557.5,3556.0,2.46071512]
[1735919028695,0.28134,3557.0,3556.9,3.2078]
[1735919028903,2.46071512,3557.2,3556.9,3.2078]
[1735919029103,0.28134,3557.0,3556.9,3.2078]
[1735919030104,0.9745,3557.1,3556.9,3.2078]
[1735919030309,1.25584,3557.1,3556.9,3.2078]
[1735919030613,0.9745,3557.1,3556.9,3.2078]
[1735919030905,0.9745,3557.1,3557.0,0.28134]
[1735919031301,0.8612,3557.4,3557.0,0.28134]
[1735919031504,1.14252,3557.4,3557.3,3.2078]
[1735919031704,0.8612,3557.4,3557.3,3.2078]
[1735919031905,0.8612,3557.4,3557.3,3.48912]
[1735919032111,3.37401512,3558.0,3557.4,0.28131]
[1735919032407,3.65527512,3558.0,3557.9,3.2078]
[1735919032913,3.65527512,3558.0,3557.3,0.28132]
[1735919032914,3.37401512,3558.0,3557.3,3.2078]
[1735919033406,0.28131,3557.4,3557.3,3.2078]
[1735919034001,0.8635,3557.5,3556.9,3.2078]
[1735919034200,0.28134,3557.0,3556.9,3.2078]
[1735919035810,0.9772,3557.1,3556.9,3.2078]
[1735919035998,0.9772,3557.1,3557.0,0.28134]
[1735919037007,0.28134,3557.0,3556.9,3.2078]
[1735919037311,0.9772,3557.1,3556.9,3.2078]
[1735919037511,0.9772,3557.1,3557.0,0.28134]
[1735919037700,1.25853,3557.1,3556.9,3.2078]
[1735919037899,0.9772,3557.1,3557.0,0.28134]
[1735919038106,0.8635,3557.5,3556.9,3.2078]
[1735919038405,2.74201512,3557.6,3557.3,3.2078]
[1735919038704,5.52541512,3558.0,3557.3,3.2078]
[1735919039012,0.28129,3557.8,3557.4,0.28131]
[1735919039211,0.28129,3557.7,3557.4,0.28131]
[1735919039404,0.28131,3557.4,3557.3,3.2078]
[1735919039605,0.28131,3557.5,3557.3,3.48911]
[1735919040009,5.52541512,3558.0,3557.3,3.2078]
[1735919041208,5.52541512,3558.0,3557.7,3.2078]
[1735919041209,0.28128,3557.8,3557.7,3.2078]
[1735919041713,2.46071512,3558.8,3557.7,3.2078]
[1735919041909,1.7741,3558.7,3558.5,3.2078]
[1735919042211,0.9553,3558.7,3558.6,0.28122]
[1735919042409,0.9553,3558.7,3558.5,3.2078]
[1735919042603,0.28122,3558.6,3558.5,3.2078]
[1735919046315,1.23651,3558.7,3558.5,3.48902]
[1735919046514,0.28122,3558.6,3558.5,3.2078]
[1735919047214,0.28125,3558.2,3558.1,3.2078]
[1735919047411,2.74196512,3558.2,3558.1,3.2078]
[1735919047910,40.8,3558.2,3558.1,3.2078]
[1735919048111,0.9553,3558.7,3558.1,3.2078]
[1735919048308,5.42488512,3559.0,3558.6,3.2078]
[1735919048512,0.28121,3558.7,3558.6,3.2078]
[1735919050220,3.47191512,3559.0,3558.6,3.2078]
[1735919050412,0.28116,3559.3,3559.1,0.28117]
[1735919050720,0.28116,3559.3,3559.2,3.2078]
[1735919051116,2.46071512,3559.8,3559.2,3.2078]
[1735919051323,2.46071512,3559.8,3559.6,3.2078]
[1735919051522,0.28116,3559.3,3559.1,3.48897]
[1735919051724,0.28117,3559.2,3559.1,3.2078]
[1735919052118,0.2812,3558.8,3558.7,3.2078]
[1735919054323,2.46071512,3559.0,3558.3,3.2078]
[1735919054520,0.28123,3558.4,3558.3,3.2078]
[1735919056319,0.8394,3558.6,3558.3,3.2078]
[1735919056519,1.22781,3558.7,3558.6,0.28122]
[1735919056719,0.9466,3558.7,3558.6,0.28122]
[1735919057018,0.9466,3558.7,3558.4,0.28123]
[1735919057223,0.28122,3558.6,3558.5,0.28122]
[1735919057521,0.28126,3558.0,3557.9,3.2078]
[1735919057728,2.74197512,3558.0,3557.9,3.2078]
[1735919057923,0.28126,3558.0,3557.9,3.2078]
[1735919058221,0.28125,3558.1,3557.9,3.2078]
[1735919058419,0.28126,3558.0,3557.9,3.2078]
[1735919058614,40.8,3558.2,3557.9,3.2078]
[1735919058819,0.8312,3558.4,3557.9,3.2078]
[1735919059027,1.11244,3558.4,3558.3,3.2078]
[1735919060419,0.8312,3558.4,3558.3,3.48904]
[1735919060828,0.28122,3558.6,3558.4,0.28123]